Cogmind - Beta 15 @@@ ROGUE MODE // 2025.09.08 @ 20:53:50 Player: the Result: Destroyed by P-60 Hacker with Shock Rifle Performance ------------- Evolutions (3) 1500 Regions Visited (14) 2800 Robots Destroyed (282) 1410 Value Destroyed (10757) 10757 Prototype IDs (37) 740 Alien Tech Used (0) 0 Bonus (3401) 3401 TOTAL SCORE: 20608 Bonus ------- High Alert Combat Kills 2042 Follower Combat Kills 259 Entered Garrisons 800 Aligned with FarCom 300 Cogmind --------- Core Integrity 0/700 Matter 18/300 Energy 99/100 System Corruption 11% Temperature Cool (0) Movement Core (50) Location -7/Garrison Parts ------- > --- POWER (1) -------- (None) > --- PROPULSION (4) --- (None) > --- UTILITY (5) ------ (None) > --- WEAPON (3) ------- (None) > --- INVENTORY (5) ---- Heavy Linear Accelerator Heavy Linear Accelerator Chainsword Peak State ------------ > --- POWER ------------ Neutrino Core > --- PROPULSION ------- Light Treads Light Treads Armored Treads Armored Treads > --- UTILITY ---------- High-capacity Storage Unit Seismic Detector Core Analyzer Heavy Reflective Plating > --- WEAPON ----------- Hypervelocity Gauss Rifle Hypervelocity Gauss Rifle Improved Plasma Cutter > --- INVENTORY -------- Improved Deuterium Engine Improved Cooling System Coolant Injector Weapon Cycler Heavy Reflective Plating Graphene Brace High-powered Tractor Beam Hypervelocity Gauss Rifle Hypervelocity Gauss Rifle KE Penetrator Heavy Flak Cannon Heavy Flak Cannon Heavy Flak Cannon Heavy Linear Accelerator Heavy Linear Accelerator Heavy Rocket Launcher Katana [Rating: 56] Favorites ----------- Power Heavy Ion Engine Engine Heavy Ion Engine Power Core Light Nuclear Core Propulsion Improved Treads Treads Improved Treads Leg Aluminum Leg Flight Unit Surge Thruster Utility Seismic Detector Device Seismic Detector Storage High-capacity Storage Unit Processor Core Analyzer Protection Hardened Medium Armor Plating Weapon Minigun Energy Gun Plasma Rifle Energy Cannon Beam Cannon Ballistic Gun Minigun Ballistic Cannon Heavy Flak Cannon Launcher Rocket Launcher Special Weapon Mining Laser Slashing Weapon Katana Special Melee Weapon Datajack Build | -11 -10 -10 -9 -9 -9 -8 -8 -8 -8 -8 -7 -7 -7 -7 ------- Run | Yrd Mat Min Mat Min Exi Min Mat Gar Mat Gar Fac Gar Fac Gar Slots Evolved 6 | . . . 2 . . . 2 . . . 2 . . . Power . | . . . . . . . . . . . . . . . Propulsion 2 | . . . 1 . . . . . . . 1 . . . Utility 3 | . . . . . . . 2 . . . 1 . . . Weapon 1 | . . . 1 . . . . . . . . . . . Parts Attached 115 | 7 10 2 21 1 . 6 4 7 22 8 10 14 3 . Power 15 | 1 1 1 1 . . 1 . 1 4 2 2 1 . . Engine 10 | 1 1 1 1 . . 1 . . 3 . 2 . . . Core 5 | . . . . . . . . 1 1 2 . 1 . . Reactor . | . . . . . . . . . . . . . . . Propulsion 31 | 2 3 . 10 . . 3 . 2 5 . 3 3 . . Treads 28 | . 3 . 10 . . 3 . 1 5 . 3 3 . . Leg 2 | 2 . . . . . . . . . . . . . . Wheel . | . . . . . . . . . . . . . . . Hover . | . . . . . . . . . . . . . . . Flight 1 | . . . . . . . . 1 . . . . . . Utility 28 | 2 1 1 4 . . 1 2 1 7 2 3 3 1 . Device 15 | 1 . 1 2 . . 1 1 . 6 1 2 . . . Storage 5 | 1 1 . 2 . . . . . . . 1 . . . Processor 2 | . . . . . . . . 1 . . . 1 . . Hackware . | . . . . . . . . . . . . . . . Protection 6 | . . . . . . . 1 . 1 1 . 2 1 . Artifact . | . . . . . . . . . . . . . . . Weapon 41 | 2 5 . 6 1 . 1 2 3 6 4 2 7 2 . Energy Gun 9 | 2 . . 2 . . . . . . 1 2 1 1 . Energy Cannon 3 | . 3 . . . . . . . . . . . . . Ballistic Gun 18 | . . . 3 . . 1 2 3 4 . . 4 1 . Ballistic Cannon 4 | . . . . . . . . . . 3 . 1 . . Launcher 3 | . . . . 1 . . . . 2 . . . . . Special Weapon 2 | . 1 . . . . . . . . . . 1 . . Impact Weapon . | . . . . . . . . . . . . . . . Slashing Weapon 1 | . . . 1 . . . . . . . . . . . Piercing Weapon . | . . . . . . . . . . . . . . . Special Melee Weapon 1 | . 1 . . . . . . . . . . . . . Unidentified Prototypes 5 | . . 1 3 . . . . . . . . . 1 . Parts Lost 23 | . . . . . . 1 . 4 6 1 1 7 3 . Power 2 | . . . . . . . . 1 1 . . . . . Propulsion 9 | . . . . . . 1 . 1 1 1 1 3 1 . Utility 6 | . . . . . . . . 1 2 . . 2 1 . Weapon 6 | . . . . . . . . 1 2 . . 2 1 . Highest Loss Streak 4 | . . . . . . 1 . 2 3 1 1 4 3 . To Critical Strikes . | . . . . . . . . . . . . . . . Average Backups 17 | 3 11 15 16 20 19 19 18 18 19 19 18 16 14 3 Power 1 | . . 1 1 1 1 2 2 2 2 1 1 1 . . Propulsion 3 | 1 3 5 4 6 6 5 3 3 3 3 1 . 1 . Utility 5 | . 2 3 5 6 6 6 5 5 5 6 5 6 5 . Weapon 6 | . 4 5 4 6 6 6 6 7 7 8 10 8 7 3 Tool/Special . | . . . . . . . . . . . . . . . Unused Backups 52 | . 3 . 21 . 1 . 2 1 9 7 1 1 4 2 Power 4 | . . . . . . . 1 . . 1 1 . 1 . Propulsion 16 | . . . 8 . . . 1 1 4 . . . 2 . Utility 11 | . . . 5 . . . . . 1 3 . 1 1 . Weapon 20 | . 3 . 8 . . . . . 4 3 . . . 2 Tool/Special 1 | . . . . . 1 . . . . . . . . . Average Slot Usage (%) 95 | . 99 100 99 100 100 100 99 95 99 98 91 82 80 . Engine 7 | . 14 14 11 11 11 11 9 3 . 1 6 5 . . Core 2 | . . . . . . . . 5 8 7 . 1 6 . Treads 27 | . 19 28 33 33 33 33 27 25 27 26 29 21 26 . Device 12 | . 14 14 11 11 11 11 18 14 15 16 14 9 6 . Storage 9 | . 14 14 11 11 11 11 9 9 9 9 7 7 6 . Processor 1 | . . . . . . . . 2 3 . . 5 6 . Protection 4 | . . . . . . . 8 9 8 8 7 6 6 . Energy Gun 1 | . 4 . . . . . . . . . 14 4 . . Energy Cannon 6 | . 23 28 21 . . . . . . . . . . . Ballistic Gun 16 | . . . 10 32 33 33 27 24 25 8 . 16 19 . Ballistic Cannon 2 | . . . . . . . . . . 16 7 . . . Peak Build Rating 56 | 7 8 16 24 24 24 26 35 36 42 46 55 56 54 3 Average Rating 31 | 4 7 8 16 23 24 24 34 32 37 41 52 49 47 3 On Entrance 25 | . 7 8 8 24 24 24 26 35 34 31 46 53 54 3 Naked Turns 147 | . . . . . . . . . . . . . 116 31 Heaviest Build 104 | 11 30 32 58 59 58 59 70 69 73 91 97 104 88 . Greatest Support 90 | 20 40 40 69 69 69 69 69 69 68 66 90 88 80 3 Greatest Overweight (x) 2 | . . . . . . . 1 1 1 1 1 2 1 . Average Overweight (x) . | . . . . . . . . . . . . 1 . . Largest Inventory Capacity 20 | 8 15 15 20 20 20 20 20 20 20 20 20 20 20 5 Average Capacity 18 | 6 12 15 16 20 20 20 20 20 20 20 20 20 18 5 Most Carried 20 | 5 15 15 20 20 20 20 20 20 20 20 20 20 20 5 Average Carried 17 | 3 11 15 16 20 19 19 18 18 19 19 19 18 17 5 Final Capacity 20 | 8 15 15 20 20 20 20 20 20 20 20 20 20 5 5 Final Carried 20 | 5 15 15 20 20 20 18 19 19 20 20 20 20 5 5 Class Distribution -------------------- 39% | Gunner 25% | Tank 22% | Mutant 8% | Scavenger-Tank 3% | Scavenger-Mutant Dominant Class ---------------- Mutant | -10/Materials Mutant | -10/Mines Gunner | -9/Materials Gunner | -9/Mines Gunner | -9/Exiles Gunner | -8/Mines Scavenger-Tank | -8/Materials Scavenger-Tank | -8/Garrison Tank | -8/Materials Tank | -8/Garrison Tank | -7/Factory Gunner | -7/Garrison Gunner | -7/Factory Mutant | -7/Garrison Resources | -11 -10 -10 -9 -9 -9 -8 -8 -8 -8 -8 -7 -7 -7 -7 ----------- Run | Yrd Mat Min Mat Min Exi Min Mat Gar Mat Gar Fac Gar Fac Gar Matter Collected 6465 | 270 120 30 457 461 . 423 479 696 1202 1019 393 715 200 . Remotely 351 | . . . . . . . . . 200 151 . . . . Salvage Created 10684 | 144 668 175 2277 587 . 311 764 937 1503 1022 673 1212 411 . Parts 599 | 14 21 14 122 28 . 31 32 69 106 45 25 62 30 . Haulers Intercepted 11 | . 2 . 6 . . . 3 . . . . . . . Recyclers Shooed 3 | . . 1 1 . . . . . 1 . . . . . Parts Field Recycled . | . . . . . . . . . . . . . . . Retrieved Matter . | . . . . . . . . . . . . . . . Parts Self-Destructed . | . . . . . . . . . . . . . . . Prevented . | . . . . . . . . . . . . . . . Kills | -11 -10 -10 -9 -9 -9 -8 -8 -8 -8 -8 -7 -7 -7 -7 ------- Run | Yrd Mat Min Mat Min Exi Min Mat Gar Mat Gar Fac Gar Fac Gar Combat Hostiles Destroyed 210 | . 8 5 35 19 . 8 8 30 28 25 15 24 5 . Guns 120 | . 3 . 3 16 . 4 8 17 23 9 9 23 5 . Cannons 58 | . 5 5 31 . . . . . . 16 . 1 . . AOE 29 | . . . . 3 . 4 . 13 5 . 4 . . . Classes Destroyed 19 | 2 7 1 2 1 . . 1 1 2 2 . . . . Worker 14 | . . 1 3 1 . 1 . . 4 . 3 . 1 . Builder 7 | . 1 . . 1 . . . . . . . . 5 . Tunneler 11 | 5 . 1 1 . . 3 . . 1 . . . . . Hauler 11 | . 2 . 6 . . . 3 . . . . . . . Recycler 14 | 1 2 . 5 . . . 2 . 3 . . . 1 . Operator 8 | . 1 . 5 . . . . . 1 . . . 1 . Watcher 11 | . 3 . 5 . . . 2 . 1 . . . . . Swarmer 52 | . 4 3 10 7 . 4 . 10 6 . 4 4 . . Cutter 3 | . . . . . . . . 3 . . . . . . Grunt 97 | . 2 2 15 6 . 4 6 14 10 17 8 11 2 . Duelist 5 | . . . 2 . . . . . 2 . . 1 . . Protector 2 | . . . . . . . . . 1 . . 1 . . Sentry 28 | . . . 8 2 . . 1 3 6 3 1 4 . . Specialist 1 | . . . . . . . . . . 1 . . . . Hunter 8 | . . . . . . . 1 . 2 2 . 2 1 . Programmer 7 | . . . . . . . . . . 2 2 1 2 . Heavy 1 | . . . . . . . . . 1 . . . . . Subdweller 2 | . 2 . . . . . . . . . . . . . Assembled 4 | . . . . 4 . . . . . . . . . . Best Kill Streak 13 | 4 3 3 9 4 . 4 5 13 7 3 9 9 4 . Combat Bots Only 13 | . 3 3 6 3 . 4 4 13 6 3 9 9 2 . Max Kills in Single Turn 6 | 1 2 1 2 3 . 4 1 6 3 1 3 2 3 . Gunslinging 1 | . . . . . . . . . 1 . 1 . . . Exploded 6 | . . . . 3 . 4 . 6 3 . 3 . . . Melee . | . . . . . . . . . . . . . . . Uniques/NPCs Destroyed . | . . . . . . . . . . . . . . . Combat | -11 -10 -10 -9 -9 -9 -8 -8 -8 -8 -8 -7 -7 -7 -7 -------- Run | Yrd Mat Min Mat Min Exi Min Mat Gar Mat Gar Fac Gar Fac Gar Hostile Shots Fired 876 | . 16 10 94 37 . 21 26 79 67 72 64 283 94 13 Missed 250 | . 3 3 29 7 . 3 6 17 16 29 24 70 36 7 Hits 626 | . 13 7 65 30 . 18 20 62 51 43 40 213 58 6 Melee 18 | . . . . . . . . 8 . . . 3 7 . Projectile 608 | . 13 7 65 30 . 18 20 54 51 43 40 210 51 6 AOE 11 | . . . . . . . . . . . . 11 . . Critical Strikes 21 | . . . . . . . 1 3 4 6 2 3 2 . Damage Taken 8918 | . 183 60 710 416 . 252 343 852 910 728 589 2715 1081 79 Core 1110 | . 51 18 47 50 . 9 . 67 124 31 15 189 430 79 Absorbed by Shields 63 | . . . . . . . . 63 . . . . . . Ignored by Resistances 118 | . . . . . . . . . . . . 27 91 . Regen/Repaired (Parts) 208 | . 107 . 39 . . . . . . . . . 62 . Core Remaining (%) 76 | 100 . 72 . . . 73 . . . 59 . . . . Volleys Fired 542 | 11 39 14 91 36 7 27 32 47 65 51 35 64 23 . Largest 3 | 2 2 2 3 3 3 3 3 3 3 3 3 3 3 . Hottest 225 | 80 120 120 180 75 75 78 81 81 81 132 225 225 99 . Shots Fired 1475 | 22 74 28 265 100 21 79 96 123 194 145 99 168 61 . Gun 1052 | 22 6 . 30 97 21 78 96 118 190 76 97 165 56 . Cannon 394 | . 64 28 231 . . . . . . 69 . 2 . . Launcher 20 | . . . . 3 . 1 . 5 4 . 2 . 5 . Special 9 | . 4 . 4 . . . . . . . . 1 . . Kinetic 907 | . . . 30 97 21 78 96 118 190 144 . 77 56 . Thermal 548 | 22 74 28 235 . . . . . . 1 97 91 . . Explosive 20 | . . . . 3 . 1 . 5 4 . 2 . 5 . Electromagnetic . | . . . . . . . . . . . . . . . Robot Hit Streak 19 | 6 11 19 13 12 . 8 17 9 10 11 13 12 13 . Robot Miss Streak 8 | 2 3 3 4 5 . 5 3 7 3 8 5 3 3 . Penetration Max 1 | . . . . . . 1 1 1 1 1 . 1 1 . Secondary Targets 28 | . 1 . . 1 . . 2 5 3 5 4 6 1 . Max Gunslinging Chain 1 | . 1 . . 1 . . 1 1 1 1 1 1 1 . Shots Hit Robots 848 | 12 43 18 152 49 . 41 58 62 119 102 63 96 33 . Core Hits 477 | 7 19 7 68 27 . 14 27 41 65 87 32 49 34 . Critical Kills 18 | . . . 1 . . . . . 1 . . 9 7 . Critical Parts Destroyed 25 | . . . . . . . 1 1 . 2 . 9 12 . Critical Strikes 59 | . . . 1 . . . 1 1 1 2 9 25 19 . Burn 15 | . . . . . . . . . . . 9 6 . . Meltdown 1 | . . . 1 . . . . . . . . . . . Destroy 43 | . . . . . . . 1 1 1 2 . 19 19 . Melee Attacks 60 | . 1 . 5 . . . . 11 10 21 3 8 1 . Impact . | . . . . . . . . . . . . . . . Slashing 59 | . . . 5 . . . . 11 10 21 3 8 1 . Piercing . | . . . . . . . . . . . . . . . Sneak Attacks 3 | . 1 . 1 . . . . . 1 . . . . . Combat Hostiles . | . . . . . . . . . . . . . . . Follow-up Attacks . | . . . . . . . . . . . . . . . Damage Inflicted 19041 | 140 759 338 3059 1057 . 870 1001 2027 2899 2095 1851 1591 1354 . Guns 10448 | 140 35 . 365 887 . 609 1001 1150 2204 824 1421 1513 299 . Cannons 4946 | . 724 338 2599 . . . . . . 1207 . 78 . . Explosions 3335 | . . . . 170 . 261 . 877 640 . 350 . 1037 . Melee 211 | . . . 92 . . . . . 55 64 . . . . Ramming 101 | . . . 3 . . . . . . . 80 . 18 . Kinetic 8922 | . . . 365 887 . 609 1001 1150 2204 2031 . 376 299 . Thermal 6653 | 140 759 338 2599 . . 44 . . . . 1421 1215 137 . Explosive 3154 | . . . . 170 . 217 . 877 640 . 350 . 900 . Electromagnetic . | . . . . . . . . . . . . . . . Impact . | . . . . . . . . . . . . . . . Slashing 211 | . . . 92 . . . . . 55 64 . . . . Piercing . | . . . . . . . . . . . . . . . Highest Corruption 11 | . . . . . . . . . 1 3 2 5 11 11 Average Corruption 3 | . . . . . . . . . 1 2 1 4 7 11 Corruption Purged . | . . . . . . . . . . . . . . . Corruption Blocked . | . . . . . . . . . . . . . . . Effects 140 | . . . . . . . . . 12 30 11 62 23 2 Message Errors 25 | . . . . . . . . . . 4 2 15 3 1 Matter Fused 27 | . . . . . . . . . 4 3 1 14 5 . Heat Flow Errors 13 | . . . . . . . . . 1 3 1 4 4 . Energy Discharges 18 | . . . . . . . . . 1 7 1 8 1 . Parts Rejected 2 | . . . . . . . . . 1 . 1 . . . Parts Fused 2 | . . . . . . . . . . 1 . 1 . . Data Loss (minor) 27 | . . . . . . . . . 3 7 1 11 4 1 Data Loss (major) 11 | . . . . . . . . . . 3 1 5 2 . Misfires 7 | . . . . . . . . . 2 1 . 2 2 . Alerts 3 | . . . . . . . . . . . 1 1 1 . Misdirections 1 | . . . . . . . . . . . . . 1 . Weapon Failures 4 | . . . . . . . . . . 1 2 1 . . Overload Shots . | . . . . . . . . . . . . . . . Overflow Damage 226 | . 5 17 32 . . 59 . 26 . . 13 . 74 . Projectiles 54 | . 5 17 32 . . . . . . . . . . . Explosions 172 | . . . . . . 59 . 26 . . 13 . 74 . Melee . | . . . . . . . . . . . . . . . Knockbacks 25 | . . . . . . . . . . 23 1 . 1 . Impact 2 | . . . . . . . . . . . 1 . 1 . Kinetic 23 | . . . . . . . . . . 23 . . . . Secondary . | . . . . . . . . . . . . . . . Self-Inflicted Damage 197 | . . . . 39 . . . 48 . . . . 110 . Shots 5 | . . . . 1 . . . 1 . . . . 3 . Rammed 8 | . . . 1 . . . . . . . 2 . 5 . Targets Rammed 9 | . . . 1 . . . . . . . 3 . 5 . Kicked . | . . . . . . . . . . . . . . . Crushed 1 | . . . . . . . . . . . 1 . . . Highest Temperature 405 | 24 360 167 400 150 60 166 15 15 216 405 393 339 261 . Average Temperature 75 | 9 97 62 81 41 22 53 6 6 30 62 125 89 73 . Received Heat Transfer 2822 | . 15 12 198 86 . 117 153 315 315 315 261 729 306 . Effects 5 | . 3 . . . . . . . . . . 2 . . Energy Bleed 2 | . . . . . . . . . . . . 2 . . Interference 3 | . 3 . . . . . . . . . . . . . Siege Activations . | . . . . . . . . . . . . . . . Martial Activations . | . . . . . . . . . . . . . . . Shielding Activations . | . . . . . . . . . . . . . . . Robots Disrupted . | . . . . . . . . . . . . . . . Combat Hostiles . | . . . . . . . . . . . . . . . Robots Corrupted . | . . . . . . . . . . . . . . . Combat Hostiles . | . . . . . . . . . . . . . . . Parts Fried . | . . . . . . . . . . . . . . . Impact Corruptions . | . . . . . . . . . . . . . . . Robots Melted 3 | . . . 1 . . . . . . . 2 . . . Combat Hostiles 3 | . . . 1 . . . . . . . 2 . . . Parts Melted 47 | 1 6 2 15 . . . . . . . 11 12 . . Heat Transferred 14949 | 325 1555 703 5254 . . 100 . . . . 3633 3229 150 . Parts Sabotaged . | . . . . . . . . . . . . . . . Parts Stolen . | . . . . . . . . . . . . . . . Parts Stripped . | . . . . . . . . . . . . . . . Power Chain Reactions . | . . . . . . . . . . . . . . . Alert | -11 -10 -10 -9 -9 -9 -8 -8 -8 -8 -8 -7 -7 -7 -7 ------- Run | Yrd Mat Min Mat Min Exi Min Mat Gar Mat Gar Fac Gar Fac Gar Maximum Alert Level 5 | . . . 1 . . 1 1 3 2 4 3 5 3 3 Low Security (%) 36 | 100 100 100 39 100 . 78 97 7 . . . . . . Level 1 10 | . . . 60 . . 21 2 2 . . . . . . Level 2 17 | . . . . . . . . 24 100 18 46 4 . . Level 3 25 | . . . . . . . . 64 . 49 53 47 100 100 Level 4 8 | . . . . . . . . . . 32 . 38 . . Level 5 1 | . . . . . . . . . . . . 9 . . High Security . | . . . . . . . . . . . . . . . Max Security . | . . . . . . . . . . . . . . . Peak Influence 1722 | 15 92 62 376 158 . 241 208 1084 665 1495 802 1722 1089 758 Initial 903 | . . 1 . 87 . . 48 39 528 416 784 544 903 758 Average 504 | 3 16 10 210 52 . 141 119 714 529 935 689 1146 827 758 Influence Increases 8259 | 30 329 130 1068 402 . 538 323 1085 929 1089 460 1248 628 . Destroy 0b10 Robot/C 4280 | . 120 100 700 300 . 300 160 600 600 500 300 460 140 . Destroy 0b10 Robot/NC 400 | 30 45 10 125 10 . 20 35 . 55 5 15 10 40 . Destroy Leader 744 | . 30 20 192 40 . 50 50 20 172 30 60 30 50 . Allied During Kill 81 | . . . . . . 42 . . 17 . . 6 16 . Trap Triggered on 0b10 10 | . 10 . . . . . . . . . . . . . Successful Hack 208 | . 45 . 20 . . . 4 49 12 14 34 30 . . Disable Machine 465 | . 45 . . 15 . 60 45 30 30 90 15 15 120 . Anti-Garrison Action 1300 | . . . . . . . . 300 . 400 . 600 . . Destroy Structure 351 | . 4 . 16 22 . 36 29 56 43 35 21 52 37 . Lose Combat Pursuer 420 | . 30 . 15 15 . 30 . 30 . 15 15 45 225 . Influence Decreases 7501 | 30 324 135 844 514 112 412 388 62 1372 235 1177 304 1267 325 Entered New Map 3223 | . . 4 . 137 112 . 78 22 556 225 711 234 819 325 Time Decay 3488 | 30 324 131 544 377 . 342 310 . 586 . 446 . 398 . Lost Part 230 | . . . . . . 10 . 40 60 10 10 70 30 . Lost Ally 110 | . . . . . . 60 . . 20 . 10 . 20 . Purge Threat 450 | . . . 300 . . . . . 150 . . . . . Squads Dispatched 25 | . 1 . 4 . . . 2 . 5 . 6 . 7 . Investigation 5 | . . . 1 . . . 1 . 1 . . . 2 . Extermination 5 | . . . . . . . . . . . 3 . 2 . Reinforcement 10 | . 1 . 3 . . . 1 . 2 . 1 . 2 . Assault 4 | . . . . . . . . . 1 . 2 . 1 . Garrison 1 | . . . . . . . . . 1 . . . . . Intercept . | . . . . . . . . . . . . . . . Searches Triggered . | . . . . . . . . . . . . . . . Construction Impeded 1 | . . . . . . . . . . . . . 1 . Haulers Reinforced . | . . . . . . . . . . . . . . . Active Scanning Responses . | . . . . . . . . . . . . . . . Cargo Convoy Interrupts . | . . . . . . . . . . . . . . . Stealth | -11 -10 -10 -9 -9 -9 -8 -8 -8 -8 -8 -7 -7 -7 -7 --------- Run | Yrd Mat Min Mat Min Exi Min Mat Gar Mat Gar Fac Gar Fac Gar Distress Signals 14 | . . . 5 2 . . . . 6 1 . . . . Communications Jammed . | . . . . . . . . . . . . . . . Distress Signals . | . . . . . . . . . . . . . . . Times Spotted 318 | . 13 5 51 19 1 17 15 30 47 28 22 25 28 17 Peak Tracking Total 17 | . 5 3 6 4 9 4 3 15 5 4 5 9 12 17 Tactical Retreats 15 | . 1 . 1 1 . 2 . 1 . 1 1 1 6 . Traps | -11 -10 -10 -9 -9 -9 -8 -8 -8 -8 -8 -7 -7 -7 -7 ------- Run | Yrd Mat Min Mat Min Exi Min Mat Gar Mat Gar Fac Gar Fac Gar Traps Triggered 11 | . . . 1 . . . . 1 1 5 . 2 1 . Indirectly . | . . . . . . . . . . . . . . . Trap Hack Attempts 36 | . 4 . 32 . . . . . . . . . . . Triggered . | . . . . . . . . . . . . . . . Disarmed 1 | . 1 . . . . . . . . . . . . . Reprogrammed 3 | . . . 3 . . . . . . . . . . . Reused 1 | . 1 . . . . . . . . . . . . . Traps Extracted . | . . . . . . . . . . . . . . . Installed 1 | . 1 . . . . . . . . . . . . . Triggered 1 | . 1 . . . . . . . . . . . . . Most Traps Carried 1 | . 1 . . . . . . . . . . . . . Machines | -11 -10 -10 -9 -9 -9 -8 -8 -8 -8 -8 -7 -7 -7 -7 ---------- Run | Yrd Mat Min Mat Min Exi Min Mat Gar Mat Gar Fac Gar Fac Gar Machines Disabled 45 | . 3 . . 1 3 4 3 6 2 10 1 4 8 . Max in Single Turn 6 | . 1 . . 1 1 4 3 1 1 1 1 1 6 . Garrison Relay 11 | . . . . . . . . 4 . 4 . 3 . . Machines Repaired . | . . . . . . . . . . . . . . . Machines Dismantled 1 | . . . . . . . . . . . . 1 . . Machines Sabotaged . | . . . . . . . . . . . . . . . Overloaded Fab Kills . | . . . . . . . . . . . . . . . Hacking | -11 -10 -10 -9 -9 -9 -8 -8 -8 -8 -8 -7 -7 -7 -7 --------- Run | Yrd Mat Min Mat Min Exi Min Mat Gar Mat Gar Fac Gar Fac Gar Machines Accessed 58 | . 9 1 12 . 2 . 4 4 8 1 8 3 6 . Terminals 42 | . 7 1 8 . . . 2 4 7 1 6 3 3 . Fabricators . | . . . . . . . . . . . . . . . Repair Stations 3 | . 1 . 1 . . . . . . . . . 1 . Recycling Units 3 | . 1 . 1 . . . . . . . 1 . . . Scanalyzers 3 | . . . 2 . . . 1 . . . . . . . Garrison Access 5 | . . . . . . . 1 . 1 . 1 . 2 . Total Hacks 166 | . 44 4 35 . 2 . 11 8 24 2 13 6 17 . Successful 81 | . 24 . 19 . 2 . 6 4 10 1 6 3 6 . Failed 85 | . 20 4 16 . . . 5 4 14 1 7 3 11 . Catastrophic 11 | . 1 . 2 . . . . . 3 . 2 . 3 . Database Lockouts . | . . . . . . . . . . . . . . . Manual 66 | . 24 4 13 . 1 . 2 . 14 . 3 1 4 . Terminals 132 | . 37 4 27 . . . 5 8 22 2 11 6 10 . Fabricators . | . . . . . . . . . . . . . . . Repair Stations 10 | . 6 . 2 . . . . . . . . . 2 . Recycling Units 4 | . 1 . 2 . . . . . . . 1 . . . Scanalyzers 7 | . . . 4 . . . 3 . . . . . . . Garrison Access 11 | . . . . . . . 3 . 2 . 1 . 5 . Terminal Hacks 44 | . 12 . 8 . 2 . 2 4 7 1 4 2 2 . Record 1 | . . . . . 1 . . . . . . . . . Part Schematic 1 | . . . . . . . . . . . 1 . . . Robot Analysis 6 | . 4 . 1 . . . . . 1 . . . . . Prototype ID Bank 6 | . 3 . . . . . 1 . 2 . . . . . Open Door 1 | . . . . . . . . 1 . . . . . . Open DSF 1 | . . . . . . . . . . . 1 . . . Branch Access Points 1 | . . . . . . . . . 1 . . . . . Emergency Access Points 3 | . . . . . . . . 1 . 1 . 1 . . Terminal Index 2 | . . . 1 . . . . . . . . . 1 . Garrison Index 1 | . . . . . . . . . . . 1 . . . Alert Level 2 | . . . 1 . . . . . . . 1 . . . Unreport Threat 3 | . . . 2 . . . . . 1 . . . . . Locate Traps 2 | . 1 . . . . . . . 1 . . . . . Hauler Manifests 4 | . 1 . 1 . . . 1 . 1 . . . . . Registered Components 3 | . 1 . 1 . . . . . . . . . 1 . Zone Layout 3 | . 2 . 1 . . . . . . . . . . . Garrison Registry 1 | . . . . . . . . 1 . . . . . . Patrol Navigation 1 | . . . . . . . . 1 . . . . . . Security Stations 1 | . . . . . . . . . . . . 1 . . Proto ID Catalog 1 | . . . . . 1 . . . . . . . . . Fabricator Hacks . | . . . . . . . . . . . . . . . Repair Station Hacks 10 | . 6 . 2 . . . . . . . . . 2 . Scan Component 5 | . 3 . 1 . . . . . . . . . 1 . Repair 5 | . 3 . 1 . . . . . . . . . 1 . Recycling Unit Hacks 1 | . . . 1 . . . . . . . . . . . Retrieve Components 1 | . . . 1 . . . . . . . . . . . Scanalyzer 5 | . . . 3 . . . 2 . . . . . . . Insert Component 3 | . . . 2 . . . 1 . . . . . . . Analyze 2 | . . . 1 . . . 1 . . . . . . . Garrison Access Hacks 4 | . . . . . . . 1 . 1 . 1 . 1 . Unlock Access 4 | . . . . . . . 1 . 1 . 1 . 1 . Unauthorized Hacks 17 | . 6 . 5 . . . 1 . 2 . 1 1 1 . Terminals 16 | . 5 . 5 . . . 1 . 2 . 1 1 1 . Track 3 | . 1 . 2 . . . . . . . . . . . Assimilate 1 | . . . . . . . . . . . 1 . . . Botnet 7 | . 2 . 3 . . . 1 . 1 . . . . . Detonate 1 | . 1 . . . . . . . . . . . . . Operators 1 | . 1 . . . . . . . . . . . . . Search 3 | . . . . . . . . . 1 . . 1 1 . Fabricators . | . . . . . . . . . . . . . . . Repair Stations . | . . . . . . . . . . . . . . . Recycling Units 1 | . 1 . . . . . . . . . . . . . Reject 1 | . 1 . . . . . . . . . . . . . Scanalyzers . | . . . . . . . . . . . . . . . Garrison Access . | . . . . . . . . . . . . . . . Data Cores Recovered 2 | . . . 2 . . . . . . . . . . . Used . | . . . . . . . . . . . . . . . Hacking Detections 51 | . 9 1 12 . . . 4 4 7 1 8 2 3 . Full Trace Events 2 | . . . . . . . 1 . . . . . 1 . Feedback Events 1 | . . . . . . . . . . . . . 1 . Corruption 1 | . . . . . . . . . . . . . 1 . Feedback Blocked . | . . . . . . . . . . . . . . . Robot Schematics Acquired . | . . . . . . . . . . . . . . . Robots Built . | . . . . . . . . . . . . . . . Authchips . | . . . . . . . . . . . . . . . Time . | . . . . . . . . . . . . . . . Total Robot Build Rating . | . . . . . . . . . . . . . . . Part Schematics Acquired 3 | . . . 1 . . . 1 . . . 1 . . . Parts Built . | . . . . . . . . . . . . . . . Authchips . | . . . . . . . . . . . . . . . Time . | . . . . . . . . . . . . . . . Total Part Build Rating . | . . . . . . . . . . . . . . . Parts Repaired 5 | . 3 . 1 . . . . . . . . . 1 . Time 154 | . 78 . 32 . . . . . . . . . 44 . Parts Recycled . | . . . . . . . . . . . . . . . Recycled Matter . | . . . . . . . . . . . . . . . Retrieved Matter . | . . . . . . . . . . . . . . . Retrieved Components 10 | . . . 10 . . . . . . . . . . . Parts Scanalyzed 2 | . . . 1 . . . 1 . . . . . . . Part Schematics Acquired 2 | . . . 1 . . . 1 . . . . . . . Parts Damaged 1 | . . . . . . . 1 . . . . . . . Bothacking | -11 -10 -10 -9 -9 -9 -8 -8 -8 -8 -8 -7 -7 -7 -7 ------------ Run | Yrd Mat Min Mat Min Exi Min Mat Gar Mat Gar Fac Gar Fac Gar Used RIF Installer . | . . . . . . . . . . . . . . . Robots Hacked 1 | . 1 . . . . . . . . . . . . . Non-combat 1 | . 1 . . . . . . . . . . . . . Combat . | . . . . . . . . . . . . . . . Robot Hacks Applied 1 | . 1 . . . . . . . . . . . . . parse_system 1 | . 1 . . . . . . . . . . . . . Relay Couplers Released 41 | . . . . . . . . 16 . 15 . 10 . . Machine Destruction 41 | . . . . . . . . 16 . 15 . 10 . . Fabnet Peak Effective % . | . . . . . . . . . . . . . . . Robots Rewired 2 | . . . . . . . . . . . . 2 . . Allies Hacked . | . . . . . . . . . . . . . . . Hacks Repelled . | . . . . . . . . . . . . . . . Allies | -11 -10 -10 -9 -9 -9 -8 -8 -8 -8 -8 -7 -7 -7 -7 -------- Run | Yrd Mat Min Mat Min Exi Min Mat Gar Mat Gar Fac Gar Fac Gar Total Allies 7 | . . . . 3 . . . 1 . . 1 2 . . Largest Group 3 | . . . . 3 3 3 . 1 1 . 1 2 2 . Highest-Rated Group 56 | . . . . 40 40 40 . 31 31 . 10 56 56 . Highest-Rated Ally 31 | . . . . 16 16 16 . 31 31 . 10 31 31 . Initial Warlord ECA Mod 106 | . . . . . . . . . 10 10 19 19 24 24 Total Orders 2 | . . . . . . 1 . . . . 1 . . . STAY 2 | . . . . . . 1 . . . . 1 . . . Ally Attacks 73 | . . . . . 1 35 . . 18 . . 2 17 . Total Damage 985 | . . . . . 18 374 . . 165 . . 21 407 . Kills 12 | . . . . . . 7 . . 3 . . . 2 . Allies Corrupted 1 | . . . . . . . . . . . . . 1 . Allies Melted . | . . . . . . . . . . . . . . . Intel | -11 -10 -10 -9 -9 -9 -8 -8 -8 -8 -8 -7 -7 -7 -7 ------- Run | Yrd Mat Min Mat Min Exi Min Mat Gar Mat Gar Fac Gar Fac Gar Active Infowar (turns) 15742 | 119 1643 744 1455 1265 513 1032 699 1126 1756 1785 864 1903 838 . Optics 1017 | . . . . . . . . 379 638 . . . . . Sensors 2 | . . 2 . . . . . . . . . . . . Seismic 14723 | 119 1643 742 1455 1265 513 1032 699 747 1118 1785 864 1903 838 . Robot Analysis Total 6 | . 4 . 1 . . . . . 1 . . . . . Derelict Logs Recovered 2 | . . 1 . 1 . . . . . . . . . . Drone Launches . | . . . . . . . . . . . . . . . Drone Recoveries . | . . . . . . . . . . . . . . . Exploration | -11 -10 -10 -9 -9 -9 -8 -8 -8 -8 -8 -7 -7 -7 -7 ------------- Run | Yrd Mat Min Mat Min Exi Min Mat Gar Mat Gar Fac Gar Fac Gar Turns Passed 18131 | 144 1655 744 2493 1265 513 1032 699 1337 1839 1990 1107 2328 954 31 Spaces Moved 8689 | 118 913 434 1216 647 299 572 347 662 992 737 492 741 458 61 Core 310 | 69 . . . . . . . . . . . . 180 61 Treads 7973 | . 556 434 1216 647 299 572 347 662 992 737 492 741 278 . Legs 406 | 49 357 . . . . . . . . . . . . . Wheels . | . . . . . . . . . . . . . . . Hover . | . . . . . . . . . . . . . . . Flight . | . . . . . . . . . . . . . . . Fastest Speed 50 | 50 120 160 160 160 160 160 160 160 145 145 161 165 50 50 Average Speed 171 | 79 144 160 160 160 160 160 164 168 151 205 185 267 168 50 Slowest Speed 330 | 120 160 160 160 160 160 160 240 240 230 233 241 330 245 50 Overloaded Moves . | . . . . . . . . . . . . . . . Propulsion Burnouts . | . . . . . . . . . . . . . . . Robots Hopped . | . . . . . . . . . . . . . . . Potential Cave-ins . | . . . . . . . . . . . . . . . Cave-ins Triggered . | . . . . . . . . . . . . . . . Exploration Rate (%) 61 | 3 97 88 95 92 61 85 43 80 78 79 19 69 19 21 Regions Visited 14 Branch Regions 4 Pre-discovered Areas 2 | . . . . 1 1 . . . . . . . . . Known Exits Taken 5 | . . 1 . . . . 1 . 1 . 1 . 1 . Unknown Exits Taken 6 | 1 1 . 1 1 1 1 . . . . . . . . Scrap Searched 4 | . . 1 . 2 . 1 . . . . . . . . Spaces Dug 36 | . 4 . 5 . . . . . 9 . 17 . 1 . Terrain Destroyed 232 | . 4 . 8 27 . 39 26 17 42 1 29 2 37 . Melee 17 | . . . 4 . . . . . 9 . 3 . 1 . Projectile 16 | . 4 . 4 . . 2 . 1 3 1 . 1 . . AOE 197 | . . . . 27 . 37 26 16 30 . 26 . 35 . Terrain Rammed . | . . . . . . . . . . . . . . . Walls Destroyed . | . . . . . . . . . . . . . . . Machines Disabled . | . . . . . . . . . . . . . . . Actions | -11 -10 -10 -9 -9 -9 -8 -8 -8 -8 -8 -7 -7 -7 -7 --------- Run | Yrd Mat Min Mat Min Exi Min Mat Gar Mat Gar Fac Gar Fac Gar Total 10787 | 145 1171 458 1580 818 323 642 413 767 1202 1085 597 934 591 61 Wait 908 | 1 170 5 107 132 16 29 23 23 28 206 32 42 94 . Move 8675 | 117 912 433 1215 646 298 571 346 660 991 736 492 740 457 61 Hop . | . . . . . . . . . . . . . . . Pick Up 144 | 9 22 1 45 . 1 2 4 1 25 15 5 12 2 . Fast Attach 24 | 3 . . 2 . . . 1 5 4 5 1 3 . . Attach 45 | 4 4 . 5 . . 1 2 2 7 2 5 11 2 . Detach 10 | . . . 1 . . . . . 2 1 2 4 . . Swap 156 | . 8 3 27 4 . 7 2 16 37 20 14 13 5 . Drop 143 | . 10 2 49 . 1 5 3 2 33 20 5 11 2 . Fire 542 | 11 39 14 91 36 7 27 32 47 65 51 35 64 23 . Melee 60 | . 1 . 5 . . . . 11 10 21 3 8 1 . Ram 5 | . . . . . . . . . . . . . 5 . Kick . | . . . . . . . . . . . . . . . Crush 4 | . . . 1 . . . . . . . 3 . . . Escape Stasis 8 | . . . . . . . . . . 8 . . . . Rewire 18 | . . . . . . . . . . . . 18 . . Trap 37 | . 5 . 32 . . . . . . . . . . . Miscellaneous 8 | . . . . . . . . . . . . 8 . . Route ------- -11/Scrapyard -10/Materials (discovered 5 exits: *Mat x3 / *Min x2) -10/Mines (discovered 2 exits: *Mat x2) -9/Materials (discovered 4 exits: *Mat x3 / [*Min]) -9/Mines (discovered 2 exits: *Mat / *Exi) -9/Exiles -8/Mines -8/Materials (discovered 2 exits: *Fac / Gar) -8/Garrison (discovered 3 exits: *Mat x3) -8/Materials (discovered 3 exits: *Fac x2 / Gar) -8/Garrison (discovered 3 exits: *Fac x3) -7/Factory (discovered 3 exits: [*Fac] / [*Low] / Gar) -7/Garrison (discovered 2 exits: *Fac x2) -7/Factory (discovered 2 exits: [*Fac] / Gar) -7/Garrison History --------- Turn | Location | Event 8 | -11/Scrapyard | Discovered new exit (range 15) 145 | -11/Scrapyard | Entered Materials 179 | -10/Materials | Discovered new exit (range 11) 308 | -10/Materials | Discovered new exit (range 13) 317 | -10/Materials | Build established: Mutant 530 | -10/Materials | Discovered new exit (range 16) 632 | -10/Materials | Discovered new exit (range 8) 645 | -10/Materials | Derelicts attacked the area 1175 | -10/Materials | Discovered new exit (range 12) 1609 | -10/Materials | Repaired Beam Cannon 1636 | -10/Materials | Repaired Lgt. Treads 1664 | -10/Materials | Repaired Lgt. Treads 1800 | -10/Materials | Entered Mines 1923 | -10/Mines | Discovered new exit (range 12) 1975 | -10/Mines | Identified exit to Materials 2140 | -10/Mines | Found a damaged Exp. Sensor Array with a note attached 2143 | -10/Mines | Found Prototype Device 2143 | -10/Mines | Identified Exp. Sensor Array 2544 | -10/Mines | Entered Materials 2544 | -9/Materials | Evolved 2 slots: Propulsion x1, Weapon x1 2864 | -9/Materials | Build established: Gunner 3156 | -9/Materials | Discovered new exit (range 13) 3512 | -9/Materials | Discovered new exit (range 12) 3802 | -9/Materials | Discovered new exit (range 18) 4314 | -9/Materials | Repaired Cooling System 4832 | -9/Materials | Discovered new exit (range 14) 5037 | -9/Materials | Entered Mines 5042 | -9/Mines | Assembled infested the area 5191 | -9/Mines | A weapon hastily lodged in a ceiling crevice suddenly fell to the ground 5354 | -9/Mines | Learned Materials garrison access intel 5469 | -9/Mines | Discovered new exit (range 8) 6175 | -9/Mines | Learned location of Storage (-7) 6265 | -9/Mines | Assisted by bots powering up and referring to "LRC-V3" 6293 | -9/Mines | Deemed a non-threat by the Exiles lab entrance 6294 | -9/Mines | Discovered new exit (range 5) 6302 | -9/Mines | Entered Exiles 6302 | -9/Exiles | Accompanied by 3 allies 6347 | -9/Exiles | Met 8R-AWN 6373 | -9/Exiles | Met EX-HEX 6419 | -9/Exiles | Met EX-BIN 6438 | -9/Exiles | Met EX-DEC 6446 | -9/Exiles | Learned location of Zion (-6) 6499 | -9/Exiles | Aligned with FarCom system 6501 | -9/Exiles | Given EX-Vault access code 6538 | -9/Exiles | Opened EX-Vault 6579 | -9/Exiles | Warned to stay clear of 0b10 Research branches 6691 | -9/Exiles | Discovered new exit (range 10) 6777 | -9/Exiles | Attacked by the Exiles 6815 | -9/Exiles | Entered Mines 6815 | -8/Mines | Accompanied by 3 allies 7318 | -8/Mines | Discovered new exit (range 6) 7847 | -8/Mines | Entered Materials 7847 | -8/Materials | Evolved 2 slots: Utility x2 7848 | -8/Materials | Loaded intel: 1 garrison access location 8249 | -8/Materials | Discovered new exit (range 7) 8283 | -8/Materials | Build established: Scavenger-Tank 8525 | -8/Materials | Identified exit to Garrison 8546 | -8/Materials | Entered Garrison 8642 | -8/Garrison | Triggered checkpoint 8682 | -8/Garrison | Destroyed 13 combat bots 8746 | -8/Garrison | Triggered checkpoint 8788 | -8/Garrison | Garrison Relay disabled 8884 | -8/Garrison | Triggered checkpoint 8965 | -8/Garrison | Garrison Relay disabled 8993 | -8/Garrison | Triggered checkpoint 9113 | -8/Garrison | Discovered new exit (range 11) 9278 | -8/Garrison | Triggered checkpoint 9334 | -8/Garrison | Garrison Relay disabled 9354 | -8/Garrison | Discovered new exit (range 51) 9354 | -8/Garrison | Discovered new exit (range 11) 9354 | -8/Garrison | Discovered new exit (range 57) 9728 | -8/Garrison | Rescued a captive Derelict 9746 | -8/Garrison | Attempted to access garrison exit controls, blocked by remote lockdown 9883 | -8/Garrison | Entered Materials 9883 | -8/Materials | Accompanied by 1 ally 10218 | -8/Materials | Build established: Tank 10445 | -8/Materials | Discovered new exit (range 6) 10683 | -8/Materials | First assault squad dispatched 10963 | -8/Materials | Lost 3 parts (1n1u1w) 11314 | -8/Materials | Discovered new exit (range 15) 11630 | -8/Materials | Garrison activated, responded to threat 11702 | -8/Materials | Identified exit to Garrison 11722 | -8/Materials | Entered Garrison 11770 | -8/Garrison | Triggered checkpoint 11802 | -8/Garrison | Garrison Relay disabled 11813 | -8/Garrison | Garrison Relay disabled 12640 | -8/Garrison | Triggered checkpoint 12724 | -8/Garrison | Triggered checkpoint 12858 | -8/Garrison | Garrison Relay disabled 12896 | -8/Garrison | Discovered new exit (range 9) 12974 | -8/Garrison | Triggered checkpoint 13054 | -8/Garrison | Triggered checkpoint 13103 | -8/Garrison | Garrison Relay disabled 13168 | -8/Garrison | Discovered new exit (range 10) 13348 | -8/Garrison | Triggered checkpoint 13536 | -8/Garrison | Triggered checkpoint 13658 | -8/Garrison | Discovered new exit (range 12) 13712 | -8/Garrison | Entered Factory 13712 | -7/Factory | Evolved 2 slots: Propulsion x1, Utility x1 14112 | -7/Factory | First assault squad dispatched 14321 | -7/Factory | Discovered new exit (range 9) 14447 | -7/Factory | Destroyed 9 combat bots 14569 | -7/Factory | Discovered new exit (range 16) 14819 | -7/Factory | Identified exit to Garrison 14819 | -7/Factory | Entered Garrison 14949 | -7/Garrison | Triggered checkpoint 14961 | -7/Garrison | Triggered checkpoint 14962 | -7/Garrison | Destroyed 9 combat bots 15002 | -7/Garrison | Garrison Relay disabled 15138 | -7/Garrison | Garrison Relay disabled 15180 | -7/Garrison | Discovered new exit (range 11) 15190 | -7/Garrison | Learned Factory security intel 15270 | -7/Garrison | Lost 4 parts (2n2w) 15623 | -7/Garrison | Found Hvy. Reflective Plating 15628 | -7/Garrison | Found Hvy. Reflective Plating 15809 | -7/Garrison | Discovered new exit (range 12) 15877 | -7/Garrison | Build established: Mutant 15999 | -7/Garrison | Triggered checkpoint 16014 | -7/Garrison | Garrison Relay disabled 16801 | -7/Garrison | Build established: Gunner 16885 | -7/Garrison | Triggered checkpoint 17147 | -7/Garrison | Entered Factory 17147 | -7/Factory | Accompanied by 2 allies 17598 | -7/Factory | Repaired Imp. Cooling System 17900 | -7/Factory | System corruption reached 10% 17947 | -7/Factory | First assault squad dispatched 17985 | -7/Factory | Released all parts (10) 17989 | -7/Factory | Discovered new exit (range 16) 17990 | -7/Factory | Core integrity fell below 50% 18014 | -7/Factory | Lost 3 parts (1n1u1w) 18045 | -7/Factory | Identified exit to Garrison 18081 | -7/Factory | Core integrity fell below 20% 18101 | -7/Factory | Entered Garrison 18131 | -7/Garrison | Triggered checkpoint 18132 | -7/Garrison | Destroyed by P-60 Hacker with Shock Rifle Last Messages --------------- GFYU694FQY: Imp. EM Pulse Cannon S9V7DDNX8S: Com. Battery WTP2MNAF78: Sml. Storage Unit 7ZISTRG7H9: Field Laser X1QO2SFHGN: Adv. Targeting Computer FXVTU9GEFU: Imp. Deuterium Engine Downloaded coordinate data. 18076_ Drone sends a signal. 18076_ U-05 Engineer lays Concrete. 18077_ Penetrated by Slug. 18077_ H-55 Commando retrieves Drone. 18080_ Slug penetrates Wall. 18100_ K-01 Serf cleans the Garrison Access. LOCATION=GARRISON GOAL=ESCAPE 18102_ System corrupted: Component data lost. 18118_ LTZ%W1Q57& JIW/0PJIP#NN8XEW 18131_ C-30 ARC bursts open, deploying its payload. 18131_ H-55 Commando unfolds itself. Map ----- +----------------------------------------------------+ | ?????????????????????????????????????????????????? | | ?????????????????????????????????????????????????? | | ?????????????????????????????????????????????????? | | ?????????????????????????????????????????????????? | | ?????????????????????????????????????????????????? | | ?????????????????????????????????????????????????? | | ?????????????????????????????????????????????????? | | ?????????????????????????????????????????????????? | | ?????????????????????????????????????????????????? | | ?????????????????????????????????????????????????? | | ??????????????????????? ????????????????????????? | | ??????????????????????# ????????????????????????? | | ??????????????????????p ????????????????????????? | | ??????????????????????#p #???????????????????????? | | ??????????????????????# #???????? #?????????????? | | ??????????????????????# #??????? #?????????????? | | ?????????????????????## ##?"""## #?????????????? | | ???????????????????### ?? h% ??????????????? | | ???????????????????? ?? ???????????????? | | ????????????????????? ? ????????????????? | | ?????????????????????# #? #??? #????????????? | | ???????????????????### ## ## ###??????????? | | ???????????????????#s l #??????????? | | ???????????????????#s l #??????????? | | ???????????????????#s #??????????? | | ???????????????????#s @ #??????????? | | ???????????????????### ## ## #????????????? | | ???????????########### ## #?????????????????? | | ???????????# ????????????? | | ???????????# ????????????? | | ???????????# ######## ???????????? | | ???????????# #??????## ## ########??????????? | | ???????????# #???????# #? #?????????????????? | | ????######## #???????# #??####?????????????????? | | ?# #???????+ #???????????????????????? | | ????######## #???????# #???????????????????????? | | ???????????# #???????# #???????????????????????? | | ???????????# ######### #???????????????????????? | | ???????????# #???????????????????????? | | ???????????# #???????????????????????? | | ???????????# ############???????????????????????? | | ???????????# #??????????????????????????????????? | | ???????????# #??????????????????????????????????? | | ???????????# #??????????????????????????????????? | | ???????????# #??????????????????????????????????? | | ???????????# #??????????????????????????????????? | | ???????????# #??????????????????????????????????? | | ???????????# #??????????????????????????????????? | | ???????????# #??????????????????????????????????? | | ???????????# #??????????????????????????????????? | +----------------------------------------------------+ Best States ------------- Heat Dissipation 83 Coolant Potential 65 Energy Generation 19 Energy Capacity 315 Matter Stores 300 Matter Capacity 300 Sight Range 20 Terrain Scan Density 10 Armor Coverage 600 Resistance: TH 25 Weapon Cycling 15 Evasion (%) 55 Core Analysis 6 Recoil Reduction 4 Item Schematics ----------------- Cooling System | -9/Materials | Scanalyzed Carbon-fiber Leg | -8/Materials | Scanalyzed Variable Charge Gun | -7/Factory | Hacked Robot Schematics ------------------ None Fabricated ------------ Nothing Repaired ---------- Beam Cannon | 70% | -10/Materials Lgt. Treads | 71% | -10/Materials Lgt. Treads | 73% | -10/Materials Cooling System | 22% | -9/Materials Imp. Cooling System | 11% | -7/Factory Alien Tech Used ----------------- None Achievements -------------- None Challenges ------------ None Game ------ Seed SlugThermoelectricBeamcaster Manual? 0 Play Time 02:07:02 Cumulative 306.6 hours Start 2025.09.08 @ 17:53:42 End 2025.09.08 @ 20:53:50 Sessions 5 Manual Loads 0 Difficulty Rogue Special Mode None Game No. 212 Rogue 212 Adventurer 0 Explorer 0 Win Type - Total 3 Types 3/0/0/0/0/0/0/0/0/0 Lore% 75 Gallery% 75 Achievement% 62 Wizard Run 0 Options --------- Layout 1 ASCII 0 Keyboard 0 Movement Mouse Keybinds 0 Fullscreen 1 Font 32/SmallcapsGlow Map View 50x35 Zoom Use 0% Tactical HUD 1 Map Filters NONE Filters NONE Steam 1 RUN: 800279d9-ef3a-48ae-8a20-c516bd6e8afe